bitfinex/quotes_SOLUSD_20251106
["timestamp","ask_amount","ask_price","bid_price","bid_amount"]
[1762429199959,103.7,159.23,159.22,16.0694457]
[1762429200251,107.82663032,159.23,159.17,15.7060508]
[1762429200458,7.99,159.22,159.18,9.78882769]
[1762429200663,11.40663032,159.22,159.18,9.78882769]
[1762429200849,0.71,159.21,159.18,9.78882769]
[1762429201048,0.71,159.21,159.18,16.07102394]
[1762429201368,6.28219625,159.18,159.11,6.28470183]
[1762429201579,3.41663032,159.12,159.08,6.28614533]
[1762429201753,10.69663032,159.11,159.08,6.28614533]
[1762429202267,7.28,159.11,159.09,4.10663032]
[1762429202459,7.28,159.11,159.1,9.78882769]
[1762429202843,3.41663032,159.14,159.1,10.47882769]
[1762429203057,7.28,159.13,159.11,0.69]
[1762429203246,3.41663032,159.12,159.08,9.78882769]
[1762429203448,4.12663032,159.12,159.1,9.78882769]
[1762429203851,4.12663032,159.11,159.08,6.28603553]
[1762429204164,4.12663032,159.11,159.09,9.78882769]
[1762429204367,7.28,159.1,159.09,9.78882769]
[1762429205666,7.28,159.1,159.09,16.07457789]
[1762429207573,110.98,159.12,159.09,20.18120821]
[1762429207858,110.98,159.12,159.1,4.10663032]
[1762429208037,110.98,159.12,159.1,0.69]
[1762429208763,103.7,159.12,159.11,13.20545801]
[1762429209246,103.7,159.12,159.11,13.89545801]
[1762429209446,103.7,159.12,159.11,13.20545801]
[1762429209755,103.7,159.12,159.11,20.1804181]
[1762429211065,103.7,159.12,159.11,16.07378778]
[1762429212062,103.7,159.12,159.11,20.1804181]
[1762429212247,7.99,159.16,159.11,35.89281832]
[1762429212457,7.99,159.16,159.13,9.78882769]
[1762429213465,7.99,159.16,159.14,6.28377529]
[1762429215373,7.28,159.16,159.14,6.28377529]
[1762429216784,103.7,159.18,159.15,9.78882769]
[1762429217074,111.69,159.17,159.15,9.78882769]
[1762429217870,110.98,159.17,159.16,6.28298567]
[1762429218172,111.69,159.17,159.16,6.28298567]
[1762429218353,110.98,159.17,159.16,6.28298567]
[1762429220556,110.98,159.17,159.15,16.07220814]
[1762429221079,103.7,159.17,159.16,0.69]
[1762429221377,110.98,159.17,159.16,10.47882769]
[1762429221751,110.98,159.17,159.16,9.78882769]
[1762429222774,110.98,159.17,159.16,16.07181336]
[1762429224281,110.98,159.17,159.16,9.78882769]
[1762429224471,111.66,159.17,159.16,9.78882769]
[1762429224674,110.98,159.17,159.16,16.07181336]
[1762429227274,110.98,159.17,159.16,9.78882769]
[1762429227486,111.66,159.17,159.15,6.28325199]
[1762429227663,110.98,159.17,159.15,6.95325199]
[1762429231677,111.66,159.17,159.15,6.28325199]
[1762429233382,110.98,159.17,159.15,6.95325199]
[1762429235185,111.66,159.17,159.15,6.28325199]
[1762429237895,110.98,159.17,159.15,6.28325199]
[1762429238396,103.7,159.17,159.16,12.68571661]
[1762429240202,103.7,159.17,159.16,9.78882769]
[1762429240403,103.7,159.17,159.16,16.07181336]
[1762429241378,8.0,159.19,159.16,16.07181336]
[1762429242096,8.0,159.19,159.16,16.78181336]
[1762429242613,8.0,159.19,159.16,18.96870228]
[1762429244203,7.28,159.18,159.16,18.96870228]
[1762429245810,7.28,159.18,159.17,16.78141863]
[1762429246410,6.28259094,159.17,159.1,0.71]
[1762429246703,2.18688892,159.15,159.1,0.71]
[1762429246909,7.00259094,159.17,159.11,9.78882769]
[1762429246910,7.28,159.14,159.11,9.78882769]
[1762429247090,7.28,159.13,159.11,11.97571661]
[1762429247288,7.28,159.13,159.11,2.18688892]
[1762429247496,0.72,159.15,159.11,0.71]
[1762429247706,0.72,159.15,159.11,2.18688892]
[1762429247908,2.90688892,159.18,159.14,9.78882769]
[1762429248114,8.0,159.18,159.14,11.97571661]
[1762429248282,0.72,159.17,159.14,11.97571661]
[1762429248606,0.72,159.17,159.14,12.68571661]
[1762429249209,0.72,159.17,159.15,6.28338045]
[1762429251504,7.28,159.18,159.15,9.18026937]
[1762429251717,8.0,159.18,159.15,9.18026937]
[1762429252120,8.0,159.18,159.15,8.47026937]
[1762429252493,8.0,159.18,159.15,9.16026937]
[1762429252696,8.0,159.18,159.15,6.97338045]
[1762429252892,7.96,159.18,159.15,6.28338045]
[1762429253222,104.38,159.17,159.15,6.28338045]
[1762429253917,0.68,159.16,159.12,17.75882769]
[1762429254211,105.88688892,159.17,159.12,19.94571661]
[1762429254509,106.56688892,159.17,159.14,9.78882769]
[1762429255297,104.38,159.17,159.14,9.78882769]
[1762429255699,103.7,159.17,159.14,10.47882769]
[1762429255898,104.38,159.17,159.15,6.28338045]
[1762429260327,104.38,159.17,159.14,18.25934055]
[1762429260529,104.38,159.17,159.14,18.94934055]
[1762429260906,103.7,159.17,159.14,16.07245163]
[1762429261103,0.68,159.16,159.14,16.07245163]
[1762429261415,0.68,159.16,159.14,9.78882769]
[1762429261623,10.14688892,159.16,159.14,9.78882769]
[1762429261803,16.42988219,159.16,159.02,18.88871399]
[1762429262004,2.18688892,159.11,159.06,0.79]
[1762429262210,9.46688892,159.1,159.06,0.79]
[1762429262396,2.18688892,159.08,159.06,0.1]
[1762429262617,7.28,159.07,159.06,0.1]
[1762429262792,7.96,159.07,159.06,0.1]
[1762429264191,10.14688892,159.07,159.06,0.1]
[1762429264392,7.28,159.07,159.06,0.1]
[1762429264592,26.87670088,159.12,159.06,7.07693574]
[1762429264828,17.26882769,159.14,159.1,2.18688892]
[1762429264997,17.26882769,159.14,159.07,10.47882769]
[1762429265199,0.68,159.13,159.1,9.78882769]
[1762429265895,0.68,159.13,159.1,16.07409406]
[1762429266112,0.68,159.13,159.1,18.26098298]
[1762429266912,0.68,159.13,159.1,16.07409406]
[1762429267106,0.68,159.13,159.1,18.26098298]
[1762429267905,7.28,159.14,159.11,2.18688892]
[1762429268203,7.96,159.14,159.11,8.47166144]
[1762429268900,7.96,159.14,159.11,2.18688892]
[1762429269103,7.96,159.14,159.1,18.95096215]
[1762429270844,103.7,159.13,159.1,18.95096215]
[1762429274607,103.7,159.13,159.1,16.07407323]
[1762429274923,7.96,159.12,159.1,16.07407323]
[1762429275431,7.28,159.12,159.1,16.07407323]
[1762429275940,7.28,159.12,159.1,18.95096215]
[1762429276120,103.7,159.13,159.1,18.95096215]
[1762429276327,7.28,159.12,159.1,18.95096215]
[1762429277113,104.38,159.13,159.1,18.95096215]
[1762429278249,0.68,159.12,159.1,16.07407323]
[1762429278449,7.28,159.12,159.1,16.07407323]
[1762429280522,7.28,159.12,159.1,16.76407323]
[1762429281450,7.28,159.12,159.1,16.07407323]
[1762429285749,23.48888892,159.17,159.12,9.78882769]
[1762429285951,7.28,159.15,159.12,11.97571661]
[1762429286253,7.28,159.15,159.13,0.69]
[1762429286442,7.28,159.15,159.12,11.97571661]
[1762429286636,7.28,159.15,159.12,12.66571661]
[1762429286824,7.28,159.15,159.13,0.69]
[1762429287226,0.71,159.16,159.13,0.69]
[1762429287537,7.28,159.15,159.13,0.69]
[1762429288049,7.28,159.15,159.13,6.97386104]
[1762429288348,7.28,159.15,159.13,9.16074996]
[1762429290339,0.71,159.14,159.12,18.26022463]
[1762429290645,7.28,159.13,159.12,9.78882769]
[1762429291029,7.99,159.13,159.12,9.78882769]
[1762429291227,7.28,159.13,159.12,9.78882769]
[1762429291950,10.17688892,159.13,159.09,15.71428478]
[1762429292135,2.89688892,159.12,159.1,9.78882769]
[1762429292540,2.89688892,159.12,159.06,0.1]
[1762429292541,10.17688892,159.11,159.06,0.1]
[1762429292848,2.18688892,159.07,159.06,0.1]
[1762429293065,9.46688892,159.07,159.06,0.1]
[1762429293352,7.28,159.07,159.06,0.1]
[1762429293532,7.28,159.08,159.07,9.78882769]
[1762429293728,7.28,159.09,159.07,11.97571661]
[1762429293928,7.28,159.09,159.07,12.66571661]
[1762429294133,7.28,159.09,159.08,6.28614533]
[1762429294732,7.28,159.09,159.07,16.76525797]
[1762429296029,7.28,159.09,159.07,16.07525797]
[1762429296656,7.28,159.09,159.07,16.76525797]
[1762429297154,7.28,159.09,159.07,16.07525797]
[1762429301865,7.28,159.09,159.07,16.76525797]
[1762429304658,7.28,159.08,159.07,16.76525797]
[1762429305764,7.28,159.08,159.07,20.18618996]
[1762429306850,7.28,159.08,159.07,16.76525797]
[1762429312248,7.28,159.08,159.07,20.18618996]
[1762429313055,103.7,159.1,159.07,20.18618996]
[1762429313270,103.7,159.1,159.09,9.78882769]
[1762429313445,110.98,159.1,159.09,9.78882769]
[1762429314147,110.98,159.1,159.09,16.07457789]
[1762429315363,110.98,159.1,159.09,20.20550988]
[1762429316256,110.98,159.1,159.09,10.49882769]
[1762429316456,110.98,159.1,159.08,16.07472009]
[1762429316655,111.64,159.1,159.08,16.07472009]
[1762429317248,110.98,159.1,159.08,16.07472009]
[1762429317566,7.28,159.09,159.08,16.07472009]
[1762429317957,7.28,159.09,159.08,16.78472009]
[1762429319048,6.93969231,159.09,159.08,16.78472009]
[1762429319462,103.7,159.1,159.08,20.20565208]
[1762429319673,103.7,159.1,159.09,4.13093199]
[1762429321379,103.7,159.1,159.09,10.41668219]
[1762429321548,7.28,159.11,159.09,10.41668219]
[1762429321876,7.28,159.11,159.1,13.91975968]
[1762429322472,3.42093199,159.17,159.11,9.78882769]
[1762429322645,7.28,159.16,159.14,9.78882769]
[1762429322846,103.7,159.19,159.14,13.20975968]
[1762429323041,0.66,159.19,159.16,9.78882769]
[1762429323242,7.28,159.18,159.16,9.78882769]
[1762429323447,0.66,159.19,159.16,16.07164399]
[1762429323757,0.66,159.21,159.18,9.78882769]
[1762429324073,7.28,159.2,159.18,9.78882769]
[1762429324250,0.66,159.21,159.18,10.49882769]
[1762429324453,7.28,159.2,159.18,10.49882769]
[1762429324866,7.28,159.2,159.19,9.78882769]
[1762429326182,7.28,159.21,159.19,16.78062253]
[1762429326353,3.42093199,159.25,159.2,13.91975968]
[1762429326553,7.28,159.24,159.2,13.91975968]
[1762429326783,7.94,159.24,159.2,13.91975968]
[1762429327281,7.28,159.24,159.22,9.78882769]
[1762429331677,0.66,159.27,159.24,9.78882769]
[1762429331873,7.28,159.26,159.24,9.78882769]
[1762429332180,21.452,159.28,159.25,10.49882769]
[1762429332486,7.28,159.27,159.25,10.49882769]
[1762429333583,20.792,159.28,159.26,9.78882769]
[1762429333584,0.2,159.28,159.26,9.78882769]
[1762429333874,7.48,159.28,159.26,9.78882769]
[1762429335287,0.2,159.28,159.26,10.49882769]
[1762429335495,7.46,159.28,159.26,10.49882769]
[1762429335702,7.46,159.28,159.2,3.42093199]
[1762429335703,20.592,159.24,159.14,0.71]
[1762429335906,20.592,159.22,159.14,0.71]
[1762429336081,3.42093199,159.15,159.12,0.71]
[1762429336395,3.42093199,159.13,159.09,0.71]
[1762429336600,3.42093199,159.13,159.1,9.78882769]
[1762429336989,7.92,159.15,159.08,6.28614533]
[1762429336990,3.42093199,159.11,159.08,6.28614533]
[1762429337195,3.42093199,159.1,159.08,6.28614533]
[1762429337386,7.28,159.11,159.09,9.78882769]
[1762429337590,7.28,159.11,159.09,10.49882769]
[1762429337786,7.28,159.13,159.1,0.71]
[1762429339013,10.70093199,159.13,159.09,16.07436752]
[1762429339220,10.70093199,159.13,159.1,0.71]
[1762429340092,7.28,159.13,159.1,0.71]
[1762429340400,7.28,159.13,159.1,6.9952851]
[1762429341893,27.872,159.17,159.12,13.20975968]
[1762429342098,7.28,159.16,159.12,13.20975968]
[1762429342310,7.28,159.16,159.14,9.78882769]
[1762429342732,3.42093199,159.18,159.14,0.69]
[1762429342936,7.28,159.17,159.16,9.78882769]
[1762429343224,7.28,159.17,159.13,3.42093199]
[1762429343422,7.28,159.17,159.15,9.78882769]
[1762429344322,7.28,159.17,159.15,16.07217984]
[1762429345019,7.28,159.17,159.15,9.78882769]
[1762429349827,7.28,159.17,159.15,16.07209463]
[1762429349996,7.28,159.17,159.15,16.76209463]
[1762429350317,7.28,159.17,159.15,20.18302662]
[1762429350816,7.28,159.17,159.15,19.49302662]
[1762429351119,7.28,159.17,159.16,0.69]
[1762429352095,7.28,159.17,159.15,19.49302662]
[1762429352405,7.28,159.17,159.15,20.18302662]
[1762429353914,103.7,159.21,159.17,9.78882769]
[1762429354119,110.98,159.2,159.17,13.20975968]
[1762429354301,110.98,159.2,159.17,13.89975968]
[1762429354716,103.7,159.2,159.19,9.78882769]
[1762429357818,103.7,159.2,159.19,10.47882769]
[1762429358025,103.7,159.2,159.19,16.76062931]
[1762429358322,103.7,159.2,159.19,10.47882769]
[1762429358527,103.7,159.2,159.19,9.78882769]
[1762429358699,103.7,159.2,159.19,16.07062931]
[1762429359126,103.7,159.2,159.19,9.78882769]
[1762429359324,107.83093199,159.2,159.13,0.69]
[1762429359535,3.42093199,159.14,159.08,0.69]
[1762429359745,3.42093199,159.11,159.07,22.6928918]
[1762429360030,7.28,159.11,159.08,10.47882769]
[1762429360332,2.18917109,159.1,159.06,0.1]
[1762429360502,2.18917109,159.09,159.06,0.1]
[1762429360707,2.18917109,159.09,159.06,10.57882769]
[1762429361119,2.18917109,159.09,159.06,16.86539315]
[1762429361727,2.89917109,159.1,159.06,16.86539315]
[1762429362232,2.18917109,159.09,159.06,16.86539315]
[1762429363307,7.28,159.13,159.07,0.69]
[1762429363505,20.592,159.17,159.07,0.69]
[1762429363506,0.71,159.17,159.1,9.78882769]
[1762429363732,7.28,159.15,159.11,2.87917109]
[1762429363924,7.28,159.15,159.11,0.69]
[1762429364430,7.28,159.15,159.13,9.78882769]
[1762429366551,7.28,159.15,159.13,16.76290621]
[1762429366719,7.28,159.15,159.13,16.07290621]
[1762429369346,103.7,159.19,159.15,9.78882769]
[1762429369642,103.7,159.19,159.17,9.78882769]
[1762429369949,103.7,159.19,159.14,0.69]
[1762429369950,103.7,159.19,159.15,0.69]
[1762429370449,103.7,159.19,159.17,9.78882769]
[1762429370638,103.7,159.19,159.18,10.47882769]
[1762429371839,103.7,159.19,159.18,16.76102394]
[1762429373048,9.46917109,159.21,159.18,16.07102394]
[1762429373247,10.16917109,159.21,159.18,16.07102394]
[1762429373844,0.7,159.2,159.16,6.2828141]
[1762429374053,2.88917109,159.2,159.17,9.78882769]
[1762429374346,15.75040326,159.21,159.17,10.50882769]
[1762429374548,14.26123217,159.21,159.17,12.69799878]
[1762429374848,16.45040326,159.21,159.17,10.50882769]
[1762429375545,16.45040326,159.21,159.17,16.79128567]
[1762429375724,16.45040326,159.21,159.17,10.50882769]
[1762429376645,14.26123217,159.21,159.17,16.79140334]
[1762429376842,7.28,159.21,159.18,0.72]
[1762429377046,112.86925538,159.24,159.2,9.78882769]
[1762429377238,7.28,159.22,159.2,9.78882769]
[1762429378453,7.28,159.22,159.2,16.07017714]
[1762429378751,103.7,159.24,159.22,9.78882769]
[1762429379256,7.28,159.23,159.22,10.50882769]
[1762429379647,103.7,159.24,159.22,9.78882769]
[1762429379949,7.28,159.23,159.22,9.78882769]
[1762429380246,7.28,159.23,159.21,9.78882769]
[1762429380443,7.28,159.23,159.21,10.50882769]
[1762429382324,7.28,159.23,159.21,16.7897421]
[1762429382523,2.38917109,159.28,159.22,2.90917109]
[1762429382753,2.38917109,159.28,159.25,2.18917109]
[1762429382754,7.28,159.27,159.25,2.18917109]
[1762429383136,7.28,159.27,159.26,10.50882769]
[1762429383746,7.28,159.27,159.26,16.78786825]
[1762429383949,7.28,159.27,159.26,10.50882769]
[1762429384139,7.48,159.28,159.27,9.78882769]
[1762429387757,8.18,159.28,159.27,9.78882769]
[1762429387929,7.48,159.28,159.27,9.78882769]
[1762429388239,7.48,159.28,159.24,9.18888361]
[1762429388240,16.64742322,159.28,159.24,9.78882769]
[1762429388552,2.88917109,159.27,159.24,9.78882769]
[1762429388736,7.26,159.26,159.24,9.78882769]
[1762429389554,7.26,159.26,159.24,16.06858154]
[1762429389959,7.26,159.26,159.24,9.78882769]
[1762429391162,2.88917109,159.25,159.2,9.78882769]
[1762429391462,7.26,159.24,159.22,9.78882769]
[1762429392960,7.96,159.24,159.22,9.78882769]
[1762429393257,7.26,159.24,159.22,9.78882769]
[1762429395155,7.26,159.24,159.2,9.19043483]
[1762429395359,7.26,159.24,159.22,9.78882769]
[1762429396845,7.26,159.24,159.21,10.50882769]
[1762429397056,7.26,159.24,159.22,6.28061801]
[1762429398374,7.26,159.24,159.21,10.50882769]
[1762429398871,7.26,159.24,159.21,16.78983728]
[1762429401056,7.26,159.24,159.21,16.06983728]
[1762429401262,7.26,159.24,159.22,0.72]
[1762429401563,7.26,159.24,159.22,2.90917109]
[1762429401966,7.26,159.24,159.23,10.50882769]
[1762429402166,7.26,159.24,159.23,12.69799878]
[1762429403178,7.26,159.24,159.23,18.97822235]
[1762429403657,110.96,159.26,159.24,9.78882769]
[1762429404268,110.96,159.26,159.24,6.27975473]
[1762429404967,111.66,159.26,159.23,6.98007595]
[1762429405350,110.96,159.26,159.23,6.98007595]
[1762429406854,110.96,159.26,159.24,2.88917109]
[1762429407069,110.96,159.26,159.23,9.16924704]
[1762429407553,110.96,159.26,159.24,9.78882769]
[1762429407761,110.96,159.26,159.24,10.48882769]
[1762429407972,110.96,159.26,159.25,10.48882769]
[1762429408981,110.96,159.26,159.25,18.95743363]
[1762429409187,7.46,159.28,159.26,9.78882769]
[1762429410253,7.46,159.28,159.26,10.48882769]
[1762429410455,7.46,159.28,159.27,10.48882769]
[1762429410654,0.2,159.28,159.27,12.67799878]
[1762429411387,0.2,159.28,159.27,18.9566451]
[1762429414264,0.2,159.32,159.28,9.78882769]
[1762429414465,0.2,159.32,159.31,11.97799878]
[1762429414890,0.2,159.33,159.31,12.67799878]
[1762429415087,0.2,159.36,159.35,30.38082769]
[1762429415385,0.2,159.36,159.35,38.84549297]
[1762429415571,0.2,159.36,159.35,39.54549297]
[1762429416395,0.2,159.36,159.35,46.80549297]
[1762429419172,0.2,159.36,159.35,44.61632188]
[1762429419378,0.2,159.36,159.35,46.80549297]
[1762429419780,0.2,159.36,159.35,39.54549297]
[1762429420088,0.2,159.36,159.35,9.78882769]
[1762429420895,0.91,159.36,159.35,9.78882769]
[1762429421297,0.2,159.36,159.35,9.78882769]
[1762429424495,0.91,159.36,159.35,9.78882769]
[1762429424794,0.91,159.36,159.31,7.26]
[1762429424970,4.11874786,159.35,159.3,13.19757555]
[1762429425166,4.11874786,159.35,159.3,19.47502878]
[1762429425366,0.71,159.35,159.32,9.78882769]
[1762429425599,0.71,159.35,159.32,10.49882769]
[1762429425832,10.86874786,159.36,159.32,9.78882769]
[1762429425996,10.86874786,159.36,159.32,10.49882769]
[1762429426401,0.2,159.36,159.32,10.49882769]
[1762429426710,0.2,159.36,159.33,13.90757555]
[1762429427090,0.2,159.36,159.35,9.78882769]
[1762429427915,4.21874786,159.36,159.32,10.3953194]
[1762429428214,4.21874786,159.36,159.33,9.78882769]
[1762429428406,3.71874786,159.36,159.32,9.78882769]
[1762429428607,3.71874786,159.36,159.32,10.49882769]
[1762429429116,4.01874786,159.35,159.31,9.78882769]
[1762429429309,3.40874786,159.35,159.31,16.77589674]
[1762429429707,3.40874786,159.35,159.32,0.71]
[1762429430620,3.40874786,159.35,159.31,19.4746446]
[1762429430621,3.40874786,159.35,159.31,10.49882769]
[1762429430824,3.40874786,159.35,159.31,13.19757555]
[1762429431007,3.40874786,159.35,159.31,13.90757555]
[1762429431207,3.40874786,159.35,159.31,9.78882769]
[1762429431408,3.40874786,159.35,159.32,0.71]
[1762429432730,4.01874786,159.36,159.32,0.71]
[1762429433405,7.26,159.37,159.33,13.19757555]
[1762429433726,11.27874786,159.37,159.33,9.78882769]
[1762429433901,11.27874786,159.37,159.31,16.94574546]
[1762429433902,4.01874786,159.36,159.31,16.94574546]
[1762429434105,3.40874786,159.35,159.32,9.78882769]
[1762429434308,4.01874786,159.35,159.32,9.78882769]
[1762429434515,3.40874786,159.35,159.32,10.47882769]
[1762429434713,10.66874786,159.36,159.32,10.47882769]
[1762429434928,11.27874786,159.36,159.32,10.47882769]
[1762429436118,17.55393811,159.36,159.32,10.47882769]
[1762429436522,17.55393811,159.36,159.32,9.78882769]
[1762429436909,17.55393811,159.36,159.32,10.47882769]
[1762429438624,3.40874786,159.35,159.32,10.47882769]
[1762429439232,14.14519025,159.36,159.32,10.47882769]
[1762429439535,7.87,159.36,159.33,0.69]
[1762429439834,7.87,159.36,159.32,19.4742368]
[1762429439835,11.27874786,159.36,159.32,10.47882769]
[1762429440542,4.01874786,159.35,159.32,9.78882769]
[1762429440838,3.40874786,159.33,159.28,9.78882769]
[1762429441046,3.40874786,159.31,159.28,9.78882769]
[1762429441223,10.66874786,159.3,159.28,9.78882769]
[1762429441757,7.26,159.3,159.28,16.06706003]
[1762429442048,7.26,159.32,159.29,10.47882769]
[1762429442437,3.40874786,159.33,159.29,10.47882769]
[1762429442611,7.26,159.32,159.29,10.47882769]
[1762429443251,10.66874786,159.32,159.29,10.47882769]
[1762429444737,3.40874786,159.31,159.29,9.78882769]
[1762429445052,4.01874786,159.31,159.29,9.78882769]
[1762429445220,3.40874786,159.31,159.29,9.78882769]
[1762429446443,3.40874786,159.3,159.17,31.41135058]
[1762429446648,3.40874786,159.27,159.24,9.78882769]
[1762429446838,3.40874786,159.27,159.24,10.47882769]
[1762429447035,3.40874786,159.27,159.21,30.28164821]
[1762429447036,3.40874786,159.26,159.21,30.28164821]
[1762429447237,3.40874786,159.24,159.19,3.40874786]
[1762429447445,3.40874786,159.25,159.2,13.88757555]
[1762429447849,3.40874786,159.25,159.22,9.78882769]
[1762429448252,3.40874786,159.25,159.22,10.47882769]
[1762429452158,3.40874786,159.24,159.19,13.19757555]
[1762429452344,3.40874786,159.24,159.22,0.69]
[1762429453037,3.40874786,159.24,159.2,6.97110222]
[1762429453231,3.40874786,159.24,159.22,9.78882769]
[1762429453636,3.40874786,159.24,159.22,0.69]
[1762429453835,3.40874786,159.25,159.22,0.69]
[1762429454534,3.40874786,159.25,159.22,10.47882769]
[1762429455858,4.01874786,159.24,159.22,9.78882769]
[1762429456059,7.26,159.23,159.2,9.78882769]
[1762429456258,7.26,159.23,159.21,0.69]
[1762429456464,3.40874786,159.26,159.22,9.78882769]
[1762429456639,7.26,159.25,159.22,13.19757555]
[1762429456841,7.26,159.25,159.22,10.47882769]
[1762429457251,7.26,159.25,159.22,9.78882769]
[1762429457448,7.26,159.25,159.23,0.69]
[1762429458351,3.40874786,159.26,159.23,0.69]
[1762429458550,7.26,159.25,159.23,0.69]
[1762429458756,7.26,159.25,159.24,9.78882769]
[1762429459258,7.26,159.25,159.24,10.47882769]
[1762429459460,7.26,159.25,159.23,9.78882769]
[1762429459667,7.26,159.25,159.23,10.47882769]
[1762429461656,7.26,159.25,159.23,9.78882769]
[1762429461833,7.26,159.25,159.23,10.47882769]
[1762429463134,11.27874786,159.25,159.22,9.78882769]
[1762429463331,10.66874786,159.25,159.22,10.47882769]
[1762429463762,7.26,159.25,159.23,0.69]
[1762429465061,7.26,159.25,159.22,10.47882769]
[1762429465966,10.66874786,159.25,159.22,10.47882769]
[1762429466342,10.66874786,159.25,159.22,9.78882769]
[1762429466549,10.66874786,159.25,159.23,0.69]
[1762429466749,7.26,159.25,159.23,0.69]
[1762429468176,7.26,159.25,159.22,9.78882769]
[1762429468378,10.66874786,159.25,159.22,10.47882769]
[1762429468587,16.94818703,159.25,159.22,10.47882769]
[1762429468944,3.40874786,159.24,159.2,0.69]
[1762429469176,3.40874786,159.22,159.2,0.69]
[1762429469975,3.40874786,159.22,159.19,9.78882769]
[1762429470287,4.01874786,159.21,159.17,9.78882769]
[1762429470580,3.40874786,159.21,159.17,10.47882769]
[1762429470745,7.26,159.2,159.18,0.69]
[1762429476273,107.10874786,159.24,159.19,13.19757555]
[1762429476478,7.26,159.22,159.19,13.19757555]
[1762429476773,7.26,159.22,159.19,10.47882769]
[1762429477468,10.66874786,159.22,159.19,10.47882769]
[1762429477858,7.26,159.22,159.19,10.47882769]
[1762429480250,7.26,159.22,159.2,0.72]
[1762429480453,7.26,159.22,159.19,16.79062728]
[1762429481580,7.26,159.22,159.19,20.19937514]
[1762429481882,7.26,159.22,159.2,0.72]
[1762429482349,109.97993441,159.24,159.2,2.90557402]
[1762429482557,7.26,159.23,159.2,2.90557402]
[1762429482754,7.26,159.23,159.21,0.72]
[1762429486585,2.79557402,159.22,159.19,9.78882769]
[1762429486786,22.77757402,159.2,159.15,0.1]
[1762429487083,2.18557402,159.18,159.15,9.88882769]
[1762429487279,7.26,159.17,159.15,9.88882769]
[1762429487660,7.26,159.17,159.15,0.1]
[1762429488780,7.26,159.17,159.15,3.00557402]
[1762429489159,7.26,159.17,159.16,10.50882769]
[1762429490779,7.26,159.17,159.16,9.78882769]
[1762429491968,9.44557402,159.17,159.16,9.78882769]
[1762429492467,7.26,159.17,159.16,9.78882769]
[1762429493087,7.26,159.17,159.16,10.46882769]
[1762429494281,7.26,159.17,159.16,9.78882769]
[1762429494479,36.93019484,159.17,159.15,0.1]
[1762429494680,2.79557402,159.16,159.15,0.1]
[1762429495892,9.07855969,159.16,159.15,0.1]
[1762429496096,29.67055969,159.16,159.15,0.1]
[1762429496464,29.67055969,159.16,159.15,1e-08]
[1762429496770,20.592,159.13,159.06,0.78]
[1762429496968,22.77757402,159.09,159.06,0.78]
[1762429497194,7.28,159.08,159.06,0.78]
[1762429497394,9.46557402,159.08,159.06,0.78]
[1762429497874,15.75199245,159.08,159.06,0.78]
[1762429498479,2.18557402,159.07,159.06,0.1]
[1762429498686,30.05757402,159.08,159.06,0.78]
[1762429498895,7.28,159.07,159.06,0.78]
[1762429499116,10.07557402,159.07,159.06,0.1]
[1762429499400,9.46557402,159.07,159.06,0.1]
[1762429499899,2.18557402,159.07,159.06,0.1]
[1762429500068,15.75211453,159.07,159.06,0.1]
[1762429500788,22.77757402,159.08,159.06,0.1]
[1762429501009,20.592,159.08,159.06,0.1]
[1762429501199,7.28,159.07,159.06,0.1]
[1762429501794,18.68336032,159.12,159.06,0.1]
[1762429501795,2.51992314,159.15,159.07,9.78882769]
[1762429502027,9.46557402,159.14,159.09,8.47118931]
[1762429502329,15.74941002,159.14,159.09,2.18557402]
[1762429502625,15.74941002,159.14,159.1,0.68]
[1762429503323,9.46557402,159.14,159.1,2.86557402]